[Event "58th Akiba Rubinstein B 2022"]
[Site "Polanica-Zdroj"]
[Date "2022.08.16"]
[Round "4.4"]
[White "Wilk, Aleksander"]
[Black "Twardowski, Hubert"]
[Result "0-1"]
[ECO "C55"]
[WhiteElo "1569"]
[BlackElo "1849"]
[Annotator "NA RC"]
[PlyCount "164"]
[EventDate "2022.08.13"]
[EventCountry "POL"]
[SourceTitle "playchess.com"]
[Source "ChessBase"]
[SourceQuality "1"]
[TimeControl "40/5400+30:1800+30"]

1. e4 {[%emt 0:00:03]} e5 {[%emt 0:00:36]} 2. Nf3 {[%emt 0:00:15]} Nc6 {[%emt 0:00:09]} 3. Bc4 {[%emt 0:00:10]} Nf6 {[%emt 0:00:39]} 4. d3 {[%emt 0:00:33]} Be7 {[%emt 0:01:04]} 5. c3 {[%emt 0:01:21]} O-O {[%emt 0:01:33]} 6. O-O {[%emt 0:00:39]} d6 {[%emt 0:15:55]} 7. h3 {[%emt 0:05:11]} Ne8 {[%emt 0:16:36]} 8. b4 {[%emt 0:08:56]} Be6 {[%emt 0:00:50]} 9. Bxe6 {[%emt 0:03:41]} fxe6 {[%emt 0:00:18]} 10. b5 {[%emt 0:00:23]} Na5 {[%emt 0:01:47]} 11. Be3 {[%emt 0:14:56]} Qd7 {[%emt 0:04:51]} 12. c4 {[%emt 0:07:11]} b6 {[%emt 0:07:08]} 13. Nc3 {[%emt 0:11:47]} Bf6 {[%emt 0:01:15]} 14. Rc1 {[%emt 0:01:45]} c5 {[%emt 0:03:15]} 15. Qe2 {[%emt 0:13:42]} Nc7 {[%emt 0:01:12]} 16. Bg5 {[%emt 0:02:28]} Qe7 {[%emt 0:02:02]} 17. Bxf6 {[%emt 0:02:19]} Qxf6 {[%emt 0:06:44]} 18. Qe3 {[%emt 0:02:08]} h6 {[%emt 0:01:25]} 19. Rb1 {[%emt 0:00:56]} Nb7 {[%emt 0:02:00]} 20. a4 {[%emt 0:00:20]} Qf7 {[%emt 0:00:56]} 21. Rfe1 {[%emt 0:02:06]} Ne8 {[%emt 0:00:13]} 22. Nd2 {[%emt 0:05:56]} Kh7 {[%emt 0:02:04]} 23. g3 {[%emt 0:02:53]} g5 {[%emt 0:01:55]} 24. Re2 {[%emt 0:02:50]} Qh5 {[%emt 0:02:44]} 25. Kg2 {[%emt 0:02:04]} Nf6 {[%emt 0:00:07]} 26. g4 {[%emt 0:03:29]} Qg6 {[%emt 0:04:06]} 27. f3 {[%emt 0:01:00]} Ng8 {[%emt 0:01:31]} 28. Rf1 {[%emt 0:00:15]} Qf6 {[%emt 0:01:12]} 29. Ref2 {[%emt 0:01:29]} Ne7 {[%emt 0:00:16]} 30. Ne2 {[%emt 0:00:19]} Ng6 {[%emt 0:00:14]} 31. Nb3 {[%emt 0:00:23]} a6 {[%emt 0:02:36]} 32. Ra1 {[%emt 0:01:33]} a5 {[%emt 0:08:27]} 33. Raf1 {[%emt 0:00:12]} Nd8 {[%emt 0:00:07]} 34. Rd1 {[%emt 0:00:30]} Nf7 {[%emt 0:00:13]} 35. Rdf1 {[%emt 0:00:50]} Nfh8 {[%emt 0:00:08]} 36. Nbc1 Ra7 {[%emt 0:00:17]} 37. Ng3 {[%emt 0:01:18]} Nf4+ {[%emt 0:06:39]} 38. Kh2 {[%emt 0:00:05]} Nhg6 {[%emt 0:00:20]} 39. Nge2 {[%emt 0:01:19]} Qd8 {[%emt 0:00:37]} 40. Nxf4 {[%emt 0:00:00]} Rxf4 {[%emt 0:00:00]} 41. Ne2 {[%emt 0:00:46]} Rf8 {[%emt 0:02:29]} 42. Ng3 {[%emt 0:03:15]} Raf7 {[%emt 0:01:33]} 43. Nh5 {[%emt 0:00:39]} d5 {[%emt 0:02:41]} 44. exd5 {[%emt 0:01:30]} exd5 {[%emt 0:00:11]} 45. cxd5 {[%emt 0:04:47]} Qxd5 {[%emt 0:00:28]} 46. Qe4 {[%emt 0:01:59]} Rd7 {[%emt 0:18:37]} 47. Kg3 {[%emt 0:13:04]} Qxd3 {[%emt 0:00:37]} 48. Qc6 {[%emt 0:00:17]} Qd6 {[%emt 0:00:31]} 49. Rb1 {[%emt 0:02:38]} Nf4 {[%emt 0:03:38]} 50. Qe4+ {[%emt 0:05:05]} Qg6 {[%emt 0:00:24]} 51. Qxg6+ {[%emt 0:03:16]} Kxg6 {[%emt 0:00:16]} 52. Nxf4+ {[%emt 0:00:11]} Rxf4 {[%emt 0:01:24]} 53. Re1 {[%emt 0:00:14]} Kf6 {[%emt 0:00:16]} 54. Rfe2 {[%emt 0:00:12]} Rd5 {[%emt 0:02:11]} 55. Re4 {[%emt 0:00:20]} Rxe4 {[%emt 0:00:36]} 56. fxe4 {[%emt 0:00:08]} Rd3+ {[%emt 0:00:24]} 57. Kg2 {[%emt 0:00:10]} Rd4 {[%emt 0:00:20]} 58. Rf1+ {[%emt 0:00:10]} Ke7 {[%emt 0:00:28]} 59. h4 {[%emt 0:01:42]} gxh4 {[%emt 0:01:19]} 60. Rf5 {[%emt 0:00:12]} Rxe4 {[%emt 0:00:12]} 61. Kh3 {[%emt 0:00:13]} Rxa4 {[%emt 0:00:55]} 62. Rxe5+ {[%emt 0:00:06]} Kf6 {[%emt 0:00:18]} 63. Rd5 {[%emt 0:00:22]} Re4 {[%emt 0:00:12]} 64. Rf5+ {[%emt 0:00:16]} Kg6 {[%emt 0:00:46]} 65. Rd5 {[%emt 0:00:05]} Re6 {[%emt 0:00:08]} 66. Kxh4 {[%emt 0:00:09]} Kf7 {[%emt 0:02:39]} 67. Rd7+ {[%emt 0:00:24]} Kf6 {[%emt 0:00:09]} 68. Kh5 {[%emt 0:00:34]} Ke5 {[%emt 0:01:15]} 69. Rc7 {[%emt 0:00:57]} Kd5 {[%emt 0:00:29]} 70. Rc8 {[%emt 0:02:01]} Kc4 {[%emt 0:00:30]} 71. Rc6 {[%emt 0:00:15]} Re5+ {[%emt 0:00:04]} 72. Kxh6 {[%emt 0:00:14]} Kxb5 {[%emt 0:00:05]} 73. Rf6 {[%emt 0:00:13]} a4 {[%emt 0:00:25]} 74. Rf5 {[%emt 0:00:25]} Re1 {[%emt 0:00:55]} 75. g5 {[%emt 0:00:24]} a3 {[%emt 0:00:16]} 76. Rf2 {[%emt 0:00:05]} Rh1+ {[%emt 0:00:20]} 77. Kg7 {[%emt 0:00:08]} Rg1 {[%emt 0:00:05]} 78. g6 {[%emt 0:00:11]} Kb4 {[%emt 0:00:12]} 79. Rf6 {[%emt 0:00:14]} b5 {[%emt 0:00:35]} 80. Ra6 {[%emt 0:00:14]} c4 {[%emt 0:00:20]} 81. Kf7 {[%emt 0:00:07]} c3 {[%emt 0:00:39]} 82. g7 {[%emt 0:00:09]} Rxg7+ {[%emt 0:00:46]} 0-1

[Event "58th Akiba Rubinstein B 2022"]
[Site "Polanica-Zdroj"]
[Date "2022.08.16"]
[Round "4.5"]
[White "Lukasiewicz, Anna"]
[Black "Kowalczyk, Wojciech"]
[Result "1-0"]
[ECO "B70"]
[WhiteElo "1954"]
[BlackElo "1835"]
[Annotator "NA"]
[PlyCount "67"]
[EventDate "2022.08.13"]
[EventCountry "POL"]
[SourceTitle "playchess.com"]
[Source "ChessBase"]
[SourceQuality "1"]
[TimeControl "40/5400+30:1800+30"]

1. e4 {[%emt 0:00:03]} c5 {[%emt 0:00:11]} 2. Nf3 {[%emt 0:00:23]} d6 {[%emt 0:00:17]} 3. d4 {[%emt 0:00:13]} cxd4 {[%emt 0:00:08]} 4. Nxd4 {[%emt 0:00:05]} Nf6 {[%emt 0:00:08]} 5. Nc3 {[%emt 0:00:11]} g6 {[%emt 0:00:12]} 6. Bc4 {[%emt 0:01:31]} Bg7 {[%emt 0:00:11]} 7. h3 {[%emt 0:00:37]} O-O {[%emt 0:00:36]} 8. Nf3 {[%emt 0:01:22]} Nbd7 {[%emt 0:10:55]} 9. O-O {[%emt 0:02:15]} a6 {[%emt 0:01:11]} 10. a4 {[%emt 0:01:55]} b6 {[%emt 0:01:32]} 11. Qe2 {[%emt 0:06:08]} Bb7 {[%emt 0:02:12]} 12. Rd1 {[%emt 0:02:02]} Qc7 {[%emt 0:07:16]} 13. Nd5 {[%emt 0:21:22]} Nxd5 {[%emt 0:05:14]} 14. Bxd5 {[%emt 0:02:43]} Rac8 {[%emt 0:14:44]} 15. c3 {[%emt 0:03:29]} Nc5 {[%emt 0:15:51]} 16. Bg5 {[%emt 0:14:48]} e6 {[%emt 0:14:09]} 17. Bxb7 {[%emt 0:03:51]} Qxb7 {[%emt 0:00:49]} 18. Re1 {[%emt 0:12:20]} b5 {[%emt 0:08:16]} 19. axb5 {[%emt 0:01:38]} axb5 {[%emt 0:00:52]} 20. Rad1 {[%emt 0:05:24]} Rc6 {[%emt 0:04:02]} 21. Bf4 {[%emt 0:04:58]} e5 {[%emt 0:05:53]} 22. Bc1 {[%emt 0:00:49]} b4 {[%emt 0:00:37]} 23. cxb4 {[%emt 0:04:39]} Qxb4 {[%emt 0:00:18]} 24. Nd2 {[%emt 0:01:38]} f5 {[%emt 0:00:45]} 25. exf5 {[%emt 0:01:19]} gxf5 {[%emt 0:00:34]} 26. Nc4 {[%emt 0:01:45]} Ne4 {[%emt 0:00:25]} 27. Ne3 {[%emt 0:00:17]} Qb3 {[%emt 0:03:27]} 28. Nxf5 {[%emt 0:01:48]} Nxf2 {[%emt 0:02:02]} 29. Qxf2 {[%emt 0:01:41]} Qe6 {[%emt 0:01:10]} 30. Rf1 {[%emt 0:01:00]} Rf7 {[%emt 0:00:57]} 31. Nxg7 {[%emt 0:01:13]} Kxg7 {[%emt 0:00:12]} 32. Qg3+ {[%emt 0:00:26]} Kh8 {[%emt 0:00:21]} 33. Rxf7 {[%emt 0:00:23]} Qxf7 {[%emt 0:00:05]} 34. Rf1 1-0

[Event "58th Akiba Rubinstein B 2022"]
[Site "Polanica-Zdroj"]
[Date "2022.08.16"]
[Round "4.6"]
[White "Wesolek, Krzysztof"]
[Black "Rogala, Milosz"]
[Result "0-1"]
[ECO "C54"]
[WhiteElo "1747"]
[BlackElo "1837"]
[Annotator "NA RC"]
[PlyCount "150"]
[EventDate "2022.08.13"]
[EventCountry "POL"]
[SourceTitle "playchess.com"]
[Source "ChessBase"]
[SourceQuality "1"]
[TimeControl "40/5400+30:1800+30"]

1. e4 e5 2. Nf3 Nc6 3. Bc4 Bc5 4. c3 Nf6 5. d4 exd4 6. cxd4 Bb4+ 7. Nbd2 d5 8. exd5 Nxd5 9. O-O O-O 10. a3 Bxd2 11. Bxd2 Nb6 12. Bd3 Nxd4 13. Bc3 Nxf3+ 14. Qxf3 Qh4 15. h3 c6 16. Rfe1 Nd5 17. Be5 Be6 18. Re4 Qg5 19. h4 Qh6 20. Rae1 Rad8 21. Bd4 Nf6 22. Bxf6 Qxf6 23. Qxf6 gxf6 24. R4e3 Rd4 25. Rg3+ Kh8 26. Re4 Rxe4 27. Bxe4 Rg8 28. Re3 Rg4 29. g3 f5 30. Bf3 Rd4 31. Rc3 Kg7 32. Kf1 Bd5 33. Bxd5 Rxd5 34. Ke2 Kf6 35. b3 Ra5 36. b4 Rd5 37. f3 Ke6 38. Ke3 Ke5 39. Rc4 a5 40. bxa5 Rxa5 41. a4 h6 42. Kd2 Rd5+ 43. Kc3 Kd6 44. Rf4 b5 45. axb5 Rc5+ 46. Kb3 Rxb5+ 47. Kc3 Rc5+ 48. Kd4 Ra5 49. Kc3 Ke5 50. Kb4 Rd5 51. Kc3 Rd1 52. Ra4 Rf1 53. Ra5+ Ke6 54. Ra6 Rxf3+ 55. Kd4 Kd6 56. Ra5 Rxg3 57. Rxf5 Rg4+ 58. Kd3 Rxh4 59. Rxf7 h5 60. Rf6+ Kc5 61. Kc3 Rh3+ 62. Kc2 h4 63. Rf5+ Kb4 64. Rf4+ Kb5 65. Rf5+ c5 66. Rf4 c4 67. Rf8 Rg3 68. Rb8+ Kc5 69. Rc8+ Kd4 70. Rd8+ Ke3 71. Kc3 Rg4 72. Re8+ Kf2 73. Rh8 Kg2 74. Rd8 h3 75. Rd2+ Kg3 0-1

[Event "58th Akiba Rubinstein B 2022"]
[Site "Polanica-Zdroj"]
[Date "2022.08.16"]
[Round "4.7"]
[White "Sypien, Natan"]
[Black "Turek, Michal"]
[Result "1-0"]
[ECO "C78"]
[WhiteElo "1780"]
[BlackElo "1681"]
[Annotator "NA RC"]
[PlyCount "65"]
[EventDate "2022.08.13"]
[EventCountry "POL"]
[SourceTitle "playchess.com"]
[Source "ChessBase"]
[SourceQuality "1"]
[TimeControl "40/5400+30:1800+30"]

1. e4 {[%emt 0:00:01]} e5 {[%emt 0:00:07]} 2. Nf3 {[%emt 0:00:04]} Nc6 {[%emt 0:00:08]} 3. Bb5 {[%emt 0:00:02]} a6 {[%emt 0:00:08]} 4. Ba4 {[%emt 0:00:15]} Nf6 {[%emt 0:00:08]} 5. O-O {[%emt 0:00:13]} Bc5 {[%emt 0:00:07]} 6. c3 {[%emt 0:01:04]} b5 {[%emt 0:00:04]} 7. Bc2 {[%emt 0:00:38]} d5 {[%emt 0:00:06]} 8. d4 {[%emt 0:00:22]} dxe4 {[%emt 0:00:09]} 9. Nxe5 {[%emt 0:00:17]} Nxe5 {[%emt 0:00:26]} 10. dxe5 {[%emt 0:00:30]} Qxd1 {[%emt 0:00:14]} 11. Rxd1 {[%emt 0:00:03]} Ng4 {[%emt 0:01:17]} 12. Bxe4 {[%emt 0:00:25]} Nxf2 {[%emt 0:01:29]} 13. Bc6+ {[%emt 0:00:06]} Ke7 {[%emt 0:00:11]} 14. Rd5 {[%emt 0:00:59]} Bb6 {[%emt 0:01:51]} 15. Bxa8 {[%emt 0:00:07]} Be6 {[%emt 0:03:08]} 16. Rd4 {[%emt 0:19:55]} Nd3 {[%emt 0:00:50]} 17. Bg5+ {[%emt 0:02:55]} f6 {[%emt 0:00:25]} 18. Be4 {[%emt 0:02:29]} Nxe5 {[%emt 0:14:34]} 19. Be3 {[%emt 0:01:54]} Ng4 {[%emt 0:01:33]} 20. Bf2 {[%emt 0:00:26]} Rd8 {[%emt 0:02:33]} 21. Nd2 {[%emt 0:08:24]} Nxf2 {[%emt 0:03:32]} 22. Kxf2 {[%emt 0:00:01]} f5 {[%emt 0:02:04]} 23. Bb7 {[%emt 0:03:23]} Bxd4+ {[%emt 0:00:52]} 24. cxd4 Rxd4 {[%emt 0:00:01]} 25. Ke3 {[%emt 0:00:40]} Rd6 {[%emt 0:00:28]} 26. b4 {[%emt 0:33:14]} g5 {[%emt 0:03:23]} 27. Rc1 {[%emt 0:10:12]} f4+ {[%emt 0:04:21]} 28. Ke2 {[%emt 0:00:02]} Kd7 {[%emt 0:00:34]} 29. Ne4 {[%emt 0:03:53]} Bg4+ {[%emt 0:00:20]} 30. Ke1 {[%emt 0:00:02]} Re6 {[%emt 0:01:33]} 31. Kf1 {[%emt 0:03:08]} Kd8 {[%emt 0:00:21]} 32. Nxg5 {[%emt 0:01:04]} Re2 {[%emt 0:01:31]} 33. Rd1+ {[%emt 0:00:05]} 1-0

[Event "58th Akiba Rubinstein B 2022"]
[Site "Polanica-Zdroj"]
[Date "2022.08.16"]
[Round "4.8"]
[White "Smukowski, Bartosz"]
[Black "Hury, Tymoteusz"]
[Result "1-0"]
[ECO "D31"]
[WhiteElo "1696"]
[BlackElo "1679"]
[Annotator "NA RC"]
[PlyCount "89"]
[EventDate "2022.08.13"]
[EventCountry "POL"]
[SourceTitle "playchess.com"]
[Source "ChessBase"]
[SourceQuality "1"]
[TimeControl "40/5400+30:1800+30"]

1. d4 {[%emt 0:00:05]} d5 {[%emt 0:00:05]} 2. c4 {[%emt 0:00:06]} e6 {[%emt 0:00:04]} 3. Nc3 {[%emt 0:00:04]} Be7 {[%emt 0:00:10]} 4. Bf4 {[%emt 0:00:42]} Nf6 {[%emt 0:00:45]} 5. e3 {[%emt 0:00:19]} O-O {[%emt 0:01:29]} 6. Bd3 {[%emt 0:01:34]} Nbd7 {[%emt 0:08:25]} 7. c5 {[%emt 0:06:51]} c6 {[%emt 0:04:04]} 8. Nge2 {[%emt 0:02:58]} b6 {[%emt 0:05:48]} 9. b4 {[%emt 0:04:25]} a5 {[%emt 0:01:27]} 10. a3 {[%emt 0:01:35]} Nh5 {[%emt 0:11:53]} 11. Bg3 {[%emt 0:01:50]} h6 {[%emt 0:15:05]} 12. O-O {[%emt 0:07:30]} Nxg3 {[%emt 0:04:51]} 13. hxg3 {[%emt 0:02:44]} e5 {[%emt 0:06:16]} 14. Bf5 {[%emt 0:01:22]} exd4 {[%emt 0:10:04]} 15. Nxd4 {[%emt 0:07:37]} Ne5 {[%emt 0:04:56]} 16. Bxc8 {[%emt 0:03:18]} Rxc8 {[%emt 0:00:47]} 17. Na4 {[%emt 0:03:30]} Nc4 {[%emt 0:02:06]} 18. Ra2 {[%emt 0:12:08]} b5 {[%emt 0:03:58]} 19. Nc3 {[%emt 0:01:08]} Bf6 {[%emt 0:01:58]} 20. Nce2 {[%emt 0:05:54]} Qc7 {[%emt 0:02:53]} 21. Nf4 {[%emt 0:06:50]} g6 {[%emt 0:04:01]} 22. Qf3 {[%emt 0:11:18]} Ne5 {[%emt 0:01:47]} 23. Qe2 {[%emt 0:03:00]} Ra8 {[%emt 0:00:58]} 24. Rfa1 {[%emt 0:04:15]} Nc4 {[%emt 0:02:02]} 25. a4 {[%emt 0:02:36]} Bxd4 {[%emt 0:00:30]} 26. exd4 {[%emt 0:00:19]} axb4 {[%emt 0:01:41]} 27. axb5 {[%emt 0:00:59]} Rxa2 {[%emt 0:00:11]} 28. Qxa2 {[%emt 0:00:21]} cxb5 {[%emt 0:01:59]} 29. Qb3 {[%emt 0:02:07]} Qe7 {[%emt 0:03:19]} 30. Nxd5 {[%emt 0:03:31]} Qd8 {[%emt 0:00:35]} 31. Nxb4 {[%emt 0:02:26]} Qxd4 {[%emt 0:00:07]} 32. Rd1 {[%emt 0:01:39]} Qxc5 {[%emt 0:00:20]} 33. Rd5 {[%emt 0:00:24]} Qb6 {[%emt 0:01:41]} 34. Nd3 {[%emt 0:01:05]} Rb8 {[%emt 0:00:40]} 35. Nf4 {[%emt 0:00:45]} Qa5 {[%emt 0:00:27]} 36. Qxc4 {[%emt 0:00:23]} Qa1+ {[%emt 0:00:28]} 37. Qf1 {[%emt 0:00:07]} Qb2 {[%emt 0:00:20]} 38. Qd1 {[%emt 0:00:40]} b4 {[%emt 0:00:29]} 39. Rd2 {[%emt 0:00:34]} Qe5 {[%emt 0:00:42]} 40. Re2 {[%emt 0:00:00]} Qb5 {[%emt 0:00:00]} 41. Qd5 {[%emt 0:03:40]} Qa6 {[%emt 0:01:53]} 42. Qe5 {[%emt 0:01:38]} Rc8 {[%emt 0:01:13]} 43. Nd5 {[%emt 0:01:08]} Rc1+ {[%emt 0:03:06]} 44. Kh2 {[%emt 0:02:14]} Qc4 {[%emt 0:01:29]} 45. Nf6+ {[%emt 0:00:46]} 1-0

[Event "58th Akiba Rubinstein B 2022"]
[Site "Polanica-Zdroj"]
[Date "2022.08.16"]
[Round "4.9"]
[White "Szuber, Dawid"]
[Black "Trusz, Julia"]
[Result "0-1"]
[ECO "B03"]
[WhiteElo "1484"]
[BlackElo "1706"]
[Annotator "NA"]
[PlyCount "70"]
[EventDate "2022.08.13"]
[EventCountry "POL"]
[SourceTitle "playchess.com"]
[Source "ChessBase"]
[SourceQuality "1"]
[TimeControl "40/5400+30:1800+30"]

1. e4 {[%emt 0:00:02]} Nf6 {[%emt 0:00:23]} 2. e5 {[%emt 0:00:07]} Nd5 {[%emt 0:00:07]} 3. d4 {[%emt 0:00:04]} d6 {[%emt 0:00:11]} 4. c4 {[%emt 0:00:10]} Nb6 {[%emt 0:00:07]} 5. f4 {[%emt 0:00:14]} dxe5 {[%emt 0:00:37]} 6. fxe5 {[%emt 0:00:08]} Nc6 {[%emt 0:00:16]} 7. Be3 {[%emt 0:00:31]} Bf5 {[%emt 0:01:00]} 8. Nc3 {[%emt 0:00:50]} e6 {[%emt 0:00:55]} 9. Nf3 {[%emt 0:03:57]} Be7 {[%emt 0:00:48]} 10. Be2 {[%emt 0:13:14]} O-O {[%emt 0:02:12]} 11. O-O {[%emt 0:00:21]} f6 {[%emt 0:02:54]} 12. exf6 {[%emt 0:08:06]} Bxf6 {[%emt 0:01:15]} 13. Qd2 {[%emt 0:01:20]} Qe7 {[%emt 0:16:51]} 14. Rad1 {[%emt 0:26:23]} Rad8 {[%emt 0:05:03]} 15. Qe1 {[%emt 0:02:56]} Bg6 {[%emt 0:32:25]} 16. g4 {[%emt 0:24:40]} h6 {[%emt 0:12:18]} 17. Qg3 {[%emt 0:06:11]} e5 {[%emt 0:05:07]} 18. d5 {[%emt 0:02:16]} e4 {[%emt 0:01:07]} 19. dxc6 {[%emt 0:05:52]} exf3 {[%emt 0:01:31]} 20. Rxf3 {[%emt 0:00:48]} Rxd1+ {[%emt 0:03:57]} 21. Nxd1 {[%emt 0:01:07]} Be4 {[%emt 0:03:01]} 22. Rf1 {[%emt 0:01:01]} Bxc6 {[%emt 0:00:18]} 23. Qf2 {[%emt 0:01:06]} Qe4 {[%emt 0:01:35]} 24. Bf3 {[%emt 0:00:26]} Qxc4 {[%emt 0:00:16]} 25. Bxc6 {[%emt 0:00:20]} Qxc6 {[%emt 0:01:57]} 26. g5 {[%emt 0:00:44]} hxg5 {[%emt 0:00:35]} 27. Nc3 {[%emt 0:00:33]} Nc4 {[%emt 0:05:46]} 28. Bxg5 {[%emt 0:00:30]} Be7 {[%emt 0:00:17]} 29. Qg3 {[%emt 0:00:31]} Qc5+ {[%emt 0:00:29]} 30. Kg2 {[%emt 0:00:28]} Rxf1 {[%emt 0:00:16]} 31. Kxf1 {[%emt 0:00:22]} Bxg5 {[%emt 0:00:15]} 32. h4 {[%emt 0:00:32]} Qf5+ {[%emt 0:00:58]} 33. Kg1 {[%emt 0:00:38]} Bf4 {[%emt 0:00:32]} 34. Qe1 {[%emt 0:00:31]} Qg4+ {[%emt 0:00:34]} 35. Kh1 {[%emt 0:00:24]} Qf3+ {[%emt 0:00:41]} 0-1

[Event "58th Akiba Rubinstein B 2022"]
[Site "Polanica-Zdroj"]
[Date "2022.08.16"]
[Round "4.10"]
[White "Owoc, Jakub"]
[Black "Krzyzosiak, Marta"]
[Result "1-0"]
[ECO "A69"]
[WhiteElo "1756"]
[BlackElo "1666"]
[Annotator "NA RC"]
[PlyCount "87"]
[EventDate "2022.08.13"]
[EventCountry "POL"]
[SourceTitle "playchess.com"]
[Source "ChessBase"]
[SourceQuality "1"]
[TimeControl "40/5400+30:1800+30"]

1. d4 {[%emt 0:00:10]} Nf6 {[%emt 0:00:04]} 2. c4 {[%emt 0:00:32]} g6 {[%emt 0:00:09]} 3. Nc3 {[%emt 0:00:04]} Bg7 {[%emt 0:00:06]} 4. e4 {[%emt 0:00:04]} d6 {[%emt 0:00:08]} 5. f4 {[%emt 0:00:02]} O-O {[%emt 0:00:13]} 6. Nf3 {[%emt 0:00:03]} c5 {[%emt 0:00:10]} 7. d5 {[%emt 0:01:01]} e6 {[%emt 0:00:23]} 8. Be2 {[%emt 0:00:04]} exd5 {[%emt 0:00:23]} 9. cxd5 {[%emt 0:00:08]} Re8 {[%emt 0:00:44]} 10. e5 {[%emt 0:00:04]} dxe5 {[%emt 0:09:57]} 11. fxe5 {[%emt 0:00:07]} Ng4 {[%emt 0:13:12]} 12. e6 {[%emt 0:00:02]} fxe6 {[%emt 0:13:34]} 13. Bg5 {[%emt 0:00:05]} Bf6 {[%emt 0:15:00]} 14. Bxf6 {[%emt 0:17:34]} Nxf6 {[%emt 0:02:24]} 15. d6 {[%emt 0:01:45]} a6 {[%emt 0:06:45]} 16. O-O {[%emt 0:01:15]} Nc6 {[%emt 0:09:17]} 17. Qd2 {[%emt 0:08:09]} Kg7 {[%emt 0:07:31]} 18. Rad1 {[%emt 0:04:54]} Bd7 {[%emt 0:02:29]} 19. Qe3 {[%emt 0:01:32]} b6 {[%emt 0:03:15]} 20. Ne5 {[%emt 0:00:22]} Nd4 {[%emt 0:07:04]} 21. Ne4 {[%emt 0:08:31]} Nxe2+ {[%emt 0:02:53]} 22. Qxe2 {[%emt 0:00:07]} Bb5 {[%emt 0:00:36]} 23. Nc4 {[%emt 0:11:30]} Bxc4 {[%emt 0:00:53]} 24. Qxc4 {[%emt 0:00:02]} Nxe4 {[%emt 0:00:12]} 25. Qxe4 {[%emt 0:00:01]} Qd7 {[%emt 0:01:52]} 26. b4 {[%emt 0:04:16]} cxb4 {[%emt 0:01:18]} 27. Qxb4 {[%emt 0:00:09]} b5 {[%emt 0:00:24]} 28. Qh4 {[%emt 0:03:40]} Rf8 {[%emt 0:01:02]} 29. Rfe1 {[%emt 0:00:01]} Rfe8 {[%emt 0:01:06]} 30. Re3 {[%emt 0:02:36]} Rac8 {[%emt 0:00:50]} 31. Qd4+ {[%emt 0:00:46]} Kg8 {[%emt 0:00:21]} 32. h4 {[%emt 0:02:45]} Rc4 {[%emt 0:00:41]} 33. Qf6 {[%emt 0:00:42]} Rg4 {[%emt 0:00:33]} 34. g3 {[%emt 0:06:34]} Qd8 {[%emt 0:01:01]} 35. Qf3 {[%emt 0:02:02]} Rc4 {[%emt 0:00:33]} 36. Qb7 {[%emt 0:01:35]} Qf6 {[%emt 0:00:54]} 37. Rf3 {[%emt 0:03:07]} Qg7 {[%emt 0:00:15]} 38. d7 {[%emt 0:00:55]} Rd8 {[%emt 0:00:12]} 39. Qxa6 {[%emt 0:00:42]} Rc2 {[%emt 0:00:28]} 40. Qxe6+ {[%emt 0:00:00]} Kh8 {[%emt 0:00:00]} 41. Qe8+ {[%emt 0:00:50]} Qg8 {[%emt 0:00:45]} 42. Re3 {[%emt 0:01:08]} Rxa2 {[%emt 0:03:02]} 43. Qxd8 {[%emt 0:00:28]} Qxd8 {[%emt 0:00:07]} 44. Re8+ {[%emt 0:00:04]} 1-0

[Event "58th Akiba Rubinstein B 2022"]
[Site "Polanica-Zdroj"]
[Date "2022.08.16"]
[Round "4.11"]
[White "Penza, Denis"]
[Black "Blaszkiewicz, Jakub"]
[Result "1/2-1/2"]
[ECO "D10"]
[WhiteElo "1836"]
[BlackElo "1405"]
[Annotator "NA RC"]
[PlyCount "67"]
[EventDate "2022.08.13"]
[EventCountry "POL"]
[SourceTitle "playchess.com"]
[Source "ChessBase"]
[SourceQuality "1"]
[TimeControl "40/5400+30:1800+30"]

1. d4 {[%emt 0:00:02]} d5 {[%emt 0:00:13]} 2. c4 {[%emt 0:01:04]} c6 {[%emt 0:00:13]} 3. cxd5 {[%emt 0:00:38]} cxd5 {[%emt 0:00:12]} 4. Nf3 {[%emt 0:00:03]} Nf6 {[%emt 0:00:16]} 5. Nc3 {[%emt 0:00:06]} Nc6 {[%emt 0:00:05]} 6. Bf4 {[%emt 0:00:04]} e6 {[%emt 0:10:35]} 7. e3 {[%emt 0:00:19]} a6 {[%emt 0:00:06]} 8. Be2 {[%emt 0:01:06]} Bd6 {[%emt 0:01:25]} 9. Bxd6 {[%emt 0:01:55]} Qxd6 {[%emt 0:00:36]} 10. O-O {[%emt 0:00:07]} O-O {[%emt 0:00:11]} 11. Rc1 {[%emt 0:02:24]} b5 {[%emt 0:07:18]} 12. a4 {[%emt 0:04:06]} b4 {[%emt 0:02:25]} 13. Nb1 {[%emt 0:00:31]} Ne4 {[%emt 0:01:29]} 14. Nbd2 {[%emt 0:01:44]} f5 {[%emt 0:00:37]} 15. Ne1 {[%emt 0:07:31]} Rf6 {[%emt 0:10:54]} 16. f4 {[%emt 0:02:31]} g5 {[%emt 0:03:23]} 17. Nd3 {[%emt 0:06:45]} Rh6 {[%emt 0:02:56]} 18. Nxe4 {[%emt 0:03:47]} dxe4 {[%emt 0:01:10]} 19. Ne5 {[%emt 0:01:19]} Nxe5 {[%emt 0:00:28]} 20. fxe5 {[%emt 0:09:29]} Qe7 {[%emt 0:02:44]} 21. Qe1 {[%emt 0:13:56]} Bb7 {[%emt 0:02:59]} 22. Qg3 {[%emt 0:03:21]} Rf8 {[%emt 0:00:35]} 23. Rc5 {[%emt 0:03:59]} Rg6 {[%emt 0:00:55]} 24. Bh5 {[%emt 0:14:14]} Rg7 {[%emt 0:00:09]} 25. Rfc1 {[%emt 0:01:09]} f4 {[%emt 0:04:00]} 26. Qh3 {[%emt 0:07:01]} f3 {[%emt 0:05:47]} 27. Bg4 {[%emt 0:04:28]} f2+ {[%emt 0:02:07]} 28. Kf1 {[%emt 0:00:09]} a5 {[%emt 0:04:32]} 29. Bxe6+ {[%emt 0:01:31]} Kh8 {[%emt 0:00:04]} 30. Bc4 {[%emt 0:03:04]} g4 {[%emt 0:00:11]} 31. Qh5 {[%emt 0:04:41]} Rg5 {[%emt 0:04:27]} 32. Qh4 Rxe5 33. Qxe7 Rxe7 34. Rc2 1/2-1/2